[Event "Titled Tuesday Blitz August 16 Late 2022"]
[White "Holt, Conrad"]
[Black "Tatarinov, Dmitry"]
[WhiteFideId "2034387"]
[BlackFideId "24160067"]
[WhiteElo "2586"]
[BlackElo "2324"]
[Result "1-0"]
[Round "05"]
[TimeControl "180+1"]
[Date "2022.08.16"]
[WhiteClock "0:00:18"]
[BlackClock "0:00:10"]

1. d4 {[%clk 0:02:59]}  Nf6 {[%clk 0:02:58]} 2. c4 {[%clk 0:02:59]}  e6 {[%clk 0:02:58]} 3. Nc3 {[%clk 0:02:58]}  Bb4 {[%clk 0:02:59]} 4. Qc2 {[%clk 0:02:59]}  d5 {[%clk 0:02:57]} 5. cxd5 {[%clk 0:02:58]}  exd5 {[%clk 0:02:56]} 6. Bg5 {[%clk 0:02:56]}  h6 {[%clk 0:02:53]} 7. Bh4 {[%clk 0:02:56]}  O-O {[%clk 0:02:49]} 8. e3 {[%clk 0:02:54]}  c6 {[%clk 0:02:45]} 9. Bd3 {[%clk 0:02:52]}  Re8 {[%clk 0:02:45]} 10. Nf3 {[%clk 0:02:46]}  Nbd7 {[%clk 0:02:39]} 11. O-O {[%clk 0:02:45]}  Qa5 {[%clk 0:02:38]} 12. a3 {[%clk 0:02:43]}  Bxc3 {[%clk 0:02:39]} 13. Qxc3 {[%clk 0:02:42]}  Qxc3 {[%clk 0:02:38]} 14. bxc3 {[%clk 0:02:42]}  g5 {[%clk 0:02:33]} 15. Bg3 {[%clk 0:02:42]}  Ne4 {[%clk 0:02:33]} 16. c4 {[%clk 0:02:42]}  dxc4 {[%clk 0:02:18]} 17. Bxe4 {[%clk 0:02:36]}  Rxe4 {[%clk 0:02:17]} 18. Nd2 {[%clk 0:02:36]}  Re8 {[%clk 0:02:14]} 19. Nxc4 {[%clk 0:02:36]}  Nb6 {[%clk 0:02:15]} 20. Nd6 {[%clk 0:02:36]}  Rd8 {[%clk 0:02:14]} 21. Rfb1 {[%clk 0:02:34]}  f5 {[%clk 0:02:00]} 22. Be5 {[%clk 0:02:29]}  Rd7 {[%clk 0:01:50]} 23. Nxf5 {[%clk 0:02:24]}  Kh7 {[%clk 0:01:49]} 24. a4 {[%clk 0:02:21]}  Nd5 {[%clk 0:01:49]} 25. a5 {[%clk 0:02:15]}  Nc3 {[%clk 0:01:44]} 26. Rb3 {[%clk 0:02:08]}  Nb5 {[%clk 0:01:42]} 27. Rc1 {[%clk 0:01:57]}  Rf7 {[%clk 0:01:31]} 28. Ng3 {[%clk 0:01:53]}  Be6 {[%clk 0:01:30]} 29. Rb2 {[%clk 0:01:51]}  Rc8 {[%clk 0:01:27]} 30. Ne4 {[%clk 0:01:50]}  b6 {[%clk 0:01:25]} 31. h3 {[%clk 0:01:41]}  Kg6 {[%clk 0:01:24]} 32. Ra1 {[%clk 0:01:29]}  Bf5 {[%clk 0:01:17]} 33. Ng3 {[%clk 0:01:26]}  Be6 {[%clk 0:01:15]} 34. axb6 {[%clk 0:01:24]}  axb6 {[%clk 0:01:16]} 35. Ra6 {[%clk 0:01:24]}  Rb7 {[%clk 0:01:15]} 36. Ne4 {[%clk 0:01:12]}  Bd5 {[%clk 0:01:14]} 37. Nd6 {[%clk 0:01:11]}  Nxd6 {[%clk 0:01:13]} 38. Bxd6 {[%clk 0:01:11]}  b5 {[%clk 0:01:10]} 39. f3 {[%clk 0:01:11]}  Bc4 {[%clk 0:01:09]} 40. e4 {[%clk 0:01:03]}  Rd7 {[%clk 0:01:06]} 41. Bc5 {[%clk 0:01:03]}  h5 {[%clk 0:01:03]} 42. Kf2 {[%clk 0:01:00]}  h4 {[%clk 0:01:04]} 43. Ke3 {[%clk 0:01:01]}  Kh5 {[%clk 0:01:01]} 44. Kd2 {[%clk 0:01:00]}  Rb7 {[%clk 0:00:43]} 45. Ke3 {[%clk 0:00:59]}  Rd7 {[%clk 0:00:44]} 46. Rb1 {[%clk 0:00:57]}  Rb7 {[%clk 0:00:42]} 47. Rba1 {[%clk 0:00:55]}  Be6 {[%clk 0:00:24]} 48. Bb4 {[%clk 0:00:49]}  Bc4 {[%clk 0:00:18]} 49. Ra8 {[%clk 0:00:48]}  Rbb8 {[%clk 0:00:17]} 50. R8a7 {[%clk 0:00:47]}  Be6 {[%clk 0:00:16]} 51. Re7 {[%clk 0:00:46]}  Re8 {[%clk 0:00:16]} 52. Rh7+ {[%clk 0:00:45]}  Kg6 {[%clk 0:00:15]} 53. Raa7 {[%clk 0:00:45]}  Rg8 {[%clk 0:00:16]} 54. Rhb7 {[%clk 0:00:32]}  Rxb7 {[%clk 0:00:16]} 55. Rxb7 {[%clk 0:00:32]}  Ra8 {[%clk 0:00:17]} 56. Rc7 {[%clk 0:00:28]}  Ra6 {[%clk 0:00:17]} 57. f4 {[%clk 0:00:25]}  gxf4+ {[%clk 0:00:17]} 58. Kxf4 {[%clk 0:00:26]}  Bc4 {[%clk 0:00:15]} 59. Ke5 {[%clk 0:00:23]}  Kh5 {[%clk 0:00:11]} 60. Kf5 {[%clk 0:00:20]}  Bg8 {[%clk 0:00:12]} 61. Rg7 {[%clk 0:00:18]}  Ra8 {[%clk 0:00:12]} 62. Rg5+ {[%clk 0:00:17]}  Kh6 {[%clk 0:00:12]} 63. Rg6+ {[%clk 0:00:18]}  Kh7 {[%clk 0:00:12]} 64. Rxc6 {[%clk 0:00:19]}  Bc4 {[%clk 0:00:12]} 65. Rc7+ {[%clk 0:00:19]}  Kh6 {[%clk 0:00:12]} 66. Bd6 {[%clk 0:00:18]}  Rg8 {[%clk 0:00:12]} 67. Bf4+ {[%clk 0:00:18]}  Kh5 {[%clk 0:00:10]} 68. Rh7# {[%clk 0:00:18]} 1-0


[Site "https://www.chess.com"]

[Event "Titled Tuesday Blitz August 16 Late 2022"]
[White "Jeet, Jain"]
[Black "Al-Tarboush, Ward"]
[WhiteFideId "5073022"]
[BlackFideId "7601450"]
[WhiteElo "2055"]
[BlackElo "2234"]
[Result "0-1"]
[Round "05"]
[TimeControl "180+1"]
[Date "2022.08.18"]
[WhiteClock "0:00:00"]
[BlackClock "0:00:00"]

1. d4 {[%clk 0:00:00]}  d5 {[%clk 0:00:00]} 2. Bf4 {[%clk 0:00:00]}  Nf6 {[%clk 0:00:00]} 3. Nd2 {[%clk 0:00:00]}  c5 {[%clk 0:00:00]} 4. c3 {[%clk 0:00:00]}  Qb6 {[%clk 0:00:00]} 5. Qb3 {[%clk 0:00:00]}  Qxb3 {[%clk 0:00:00]} 6. axb3 {[%clk 0:00:00]}  cxd4 {[%clk 0:00:00]} 7. cxd4 {[%clk 0:00:00]}  Nc6 {[%clk 0:00:00]} 8. e3 {[%clk 0:00:00]}  Bf5 {[%clk 0:00:00]} 9. Bb5 {[%clk 0:00:00]}  e6 {[%clk 0:00:00]} 10. Ngf3 {[%clk 0:00:00]}  Bb4 {[%clk 0:00:00]} 11. Ke2 {[%clk 0:00:00]}  O-O {[%clk 0:00:00]} 12. Ra4 {[%clk 0:00:00]}  a5 {[%clk 0:00:00]} 13. Rc1 {[%clk 0:00:00]}  Rac8 {[%clk 0:00:00]} 14. Bxc6 {[%clk 0:00:00]}  Rxc6 {[%clk 0:00:00]} 15. Rxc6 {[%clk 0:00:00]}  bxc6 {[%clk 0:00:00]} 16. Ne5 {[%clk 0:00:00]}  c5 {[%clk 0:00:00]} 17. dxc5 {[%clk 0:00:00]}  Bxd2 {[%clk 0:00:00]} 18. Kxd2 {[%clk 0:00:00]}  Ne4+ {[%clk 0:00:00]} 19. Rxe4 {[%clk 0:00:00]}  Bxe4 {[%clk 0:00:00]} 20. f3 {[%clk 0:00:00]}  Bf5 {[%clk 0:00:00]} 21. g4 {[%clk 0:00:00]}  f6 {[%clk 0:00:00]} 22. Nd7 {[%clk 0:00:00]}  Rd8 {[%clk 0:00:00]} 23. c6 {[%clk 0:00:00]}  Rc8 {[%clk 0:00:00]} 24. gxf5 {[%clk 0:00:00]}  Rxc6 {[%clk 0:00:00]} 25. fxe6 {[%clk 0:00:00]}  Rxe6 {[%clk 0:00:00]} 26. Nc5 {[%clk 0:00:00]}  Rc6 {[%clk 0:00:00]} 27. Na4 {[%clk 0:00:00]}  g5 {[%clk 0:00:00]} 28. Bg3 {[%clk 0:00:00]}  h5 {[%clk 0:00:00]} 29. h3 {[%clk 0:00:00]}  Kf7 {[%clk 0:00:00]} 30. Nc3 {[%clk 0:00:00]}  Ke6 {[%clk 0:00:00]} 31. Kd3 {[%clk 0:00:00]}  Rb6 {[%clk 0:00:00]} 32. Kc2 {[%clk 0:00:00]}  f5 {[%clk 0:00:00]} 33. Ne2 {[%clk 0:00:00]}  Kf6 {[%clk 0:00:00]} 34. Nd4 {[%clk 0:00:00]}  Rb7 {[%clk 0:00:00]} 35. Kd2 {[%clk 0:00:00]}  Rb4 {[%clk 0:00:00]} 36. Bd6 {[%clk 0:00:00]}  Rb7 {[%clk 0:00:00]} 37. Ke2 {[%clk 0:00:00]}  a4 {[%clk 0:00:00]} 38. b4 {[%clk 0:00:00]}  g4 {[%clk 0:00:00]} 39. fxg4 {[%clk 0:00:00]}  fxg4 {[%clk 0:00:00]} 40. hxg4 {[%clk 0:00:00]}  hxg4 {[%clk 0:00:00]} 41. Kf2 {[%clk 0:00:00]}  Kg5 {[%clk 0:00:00]} 42. Kg3 {[%clk 0:00:00]}  Rd7 {[%clk 0:00:00]} 43. Bc5 {[%clk 0:00:00]}  Rf7 {[%clk 0:00:00]} 44. b5 {[%clk 0:00:00]}  Rb7 {[%clk 0:00:00]} 45. b6 {[%clk 0:00:00]}  Kf6 {[%clk 0:00:00]} 46. Kxg4 {[%clk 0:00:00]}  Ke5 {[%clk 0:00:00]} 47. Kf3 {[%clk 0:00:00]}  Rf7+ {[%clk 0:00:00]} 48. Ke2 {[%clk 0:00:00]}  Ke4 {[%clk 0:00:00]} 49. Nb5 {[%clk 0:00:00]}  Rh7 {[%clk 0:00:00]} 50. Nd6+ {[%clk 0:00:00]}  Ke5 {[%clk 0:00:00]} 51. b7 {[%clk 0:00:00]}  Rh2+ {[%clk 0:00:00]} 52. Kd3 {[%clk 0:00:00]}  Rxb2 {[%clk 0:00:00]} 53. Ba7 {[%clk 0:00:00]}  a3 {[%clk 0:00:00]} 54. b8=Q {[%clk 0:00:00]}  Rxb8 {[%clk 0:00:00]} 55. Bxb8 {[%clk 0:00:00]}  a2 {[%clk 0:00:00]} 56. Nc4+ {[%clk 0:00:00]}  Ke6 {[%clk 0:00:00]} 57. Be5 {[%clk 0:00:00]}  dxc4+ {[%clk 0:00:00]} 58. Kxc4 {[%clk 0:00:00]}  Kxe5 {[%clk 0:00:00]} 59. Kb3 {[%clk 0:00:00]}  a1=Q {[%clk 0:00:00]} 0-1


[Site "https://www.chess.com"]

[Event "Titled Tuesday Blitz August 16 Late 2022"]
[White "Kalavannan, Koby"]
[Black "Kim, Sergey"]
[WhiteFideId "425753"]
[BlackFideId "13700570"]
[WhiteElo "1927"]
[BlackElo "2295"]
[Result "0-1"]
[Round "05"]
[TimeControl "180+1"]
[Date "2022.08.18"]
[WhiteClock "0:00:00"]
[BlackClock "0:00:00"]

1. d4 {[%clk 0:00:00]}  Nf6 {[%clk 0:00:00]} 2. c4 {[%clk 0:00:00]}  g6 {[%clk 0:00:00]} 3. Nc3 {[%clk 0:00:00]}  Bg7 {[%clk 0:00:00]} 4. e4 {[%clk 0:00:00]}  d6 {[%clk 0:00:00]} 5. Be2 {[%clk 0:00:00]}  O-O {[%clk 0:00:00]} 6. Be3 {[%clk 0:00:00]}  e5 {[%clk 0:00:00]} 7. d5 {[%clk 0:00:00]}  a5 {[%clk 0:00:00]} 8. g4 {[%clk 0:00:00]}  Na6 {[%clk 0:00:00]} 9. h4 {[%clk 0:00:00]}  Nc5 {[%clk 0:00:00]} 10. Bf3 {[%clk 0:00:00]}  Bd7 {[%clk 0:00:00]} 11. h5 {[%clk 0:00:00]}  c6 {[%clk 0:00:00]} 12. g5 {[%clk 0:00:00]}  Ne8 {[%clk 0:00:00]} 13. Nge2 {[%clk 0:00:00]}  Nc7 {[%clk 0:00:00]} 14. Ng3 {[%clk 0:00:00]}  cxd5 {[%clk 0:00:00]} 15. exd5 {[%clk 0:00:00]}  b5 {[%clk 0:00:00]} 16. Bxc5 {[%clk 0:00:00]}  dxc5 {[%clk 0:00:00]} 17. d6 {[%clk 0:00:00]}  Ne6 {[%clk 0:00:00]} 18. Bxa8 {[%clk 0:00:00]}  Qxa8 {[%clk 0:00:00]} 19. h6 {[%clk 0:00:00]}  Bh8 {[%clk 0:00:00]} 20. Nd5 {[%clk 0:00:00]}  Re8 {[%clk 0:00:00]} 21. Ne7+ {[%clk 0:00:00]}  Kf8 {[%clk 0:00:00]} 22. Qd5 {[%clk 0:00:00]}  Qb8 {[%clk 0:00:00]} 23. O-O-O {[%clk 0:00:00]}  bxc4 {[%clk 0:00:00]} 24. Ne4 {[%clk 0:00:00]}  Qb4 {[%clk 0:00:00]} 25. a3 {[%clk 0:00:00]}  Qb3 {[%clk 0:00:00]} 26. Nd2 {[%clk 0:00:00]}  Qb8 {[%clk 0:00:00]} 27. Ne4 {[%clk 0:00:00]}  Qb3 {[%clk 0:00:00]} 28. Qd2 {[%clk 0:00:00]}  Qa2 {[%clk 0:00:00]} 29. Qc2 {[%clk 0:00:00]}  Nd4 {[%clk 0:00:00]} 30. Qb1 {[%clk 0:00:00]}  Qb3 {[%clk 0:00:00]} 31. Nc3 {[%clk 0:00:00]}  Rb8 {[%clk 0:00:00]} 32. Rhe1 {[%clk 0:00:00]}  e4 {[%clk 0:00:00]} 33. Re3 {[%clk 0:00:00]}  Bg4 {[%clk 0:00:00]} 34. Rd2 {[%clk 0:00:00]}  Qb7 {[%clk 0:00:00]} 35. Qxe4 {[%clk 0:00:00]}  Nb3+ {[%clk 0:00:00]} 36. Kc2 {[%clk 0:00:00]}  Nxd2 {[%clk 0:00:00]} 37. Qxb7 {[%clk 0:00:00]}  Rxb7 {[%clk 0:00:00]} 38. Kxd2 {[%clk 0:00:00]}  Bd4 {[%clk 0:00:00]} 39. Re4 {[%clk 0:00:00]}  Rxb2+ {[%clk 0:00:00]} 40. Kc1 {[%clk 0:00:00]}  Bxc3 {[%clk 0:00:00]} 41. Nc6 {[%clk 0:00:00]}  Bd7 {[%clk 0:00:00]} 42. Ne5 {[%clk 0:00:00]}  Bxe5 {[%clk 0:00:00]} 43. Rxe5 {[%clk 0:00:00]}  Rb8 {[%clk 0:00:00]} 44. Re7 {[%clk 0:00:00]}  Rd8 {[%clk 0:00:00]} 45. Re5 {[%clk 0:00:00]}  Be6 {[%clk 0:00:00]} 46. Rxc5 {[%clk 0:00:00]}  Rxd6 {[%clk 0:00:00]} 47. Rxa5 {[%clk 0:00:00]}  Rd8 {[%clk 0:00:00]} 48. f4 {[%clk 0:00:00]}  Rc8 {[%clk 0:00:00]} 49. Kc2 {[%clk 0:00:00]}  Ke7 {[%clk 0:00:00]} 50. Kc3 {[%clk 0:00:00]}  Rd8 {[%clk 0:00:00]} 51. Ra7+ {[%clk 0:00:00]}  Kd6 {[%clk 0:00:00]} 52. a4 {[%clk 0:00:00]}  Kc5 {[%clk 0:00:00]} 53. Ra5+ {[%clk 0:00:00]}  Kb6 {[%clk 0:00:00]} 54. Rb5+ {[%clk 0:00:00]}  Kc6 {[%clk 0:00:00]} 55. Re5 {[%clk 0:00:00]}  Rd3+ {[%clk 0:00:00]} 56. Kc2 {[%clk 0:00:00]}  Ra3 {[%clk 0:00:00]} 57. a5 {[%clk 0:00:00]}  c3 {[%clk 0:00:00]} 58. Re3 {[%clk 0:00:00]}  Bf5+ {[%clk 0:00:00]} 59. Kd1 {[%clk 0:00:00]}  Ra1+ {[%clk 0:00:00]} 60. Ke2 {[%clk 0:00:00]}  c2 {[%clk 0:00:00]} 61. Rc3+ {[%clk 0:00:00]}  Kb5 {[%clk 0:00:00]} 62. Kd2 {[%clk 0:00:00]}  Kxa5 {[%clk 0:00:00]} 63. Rc5+ {[%clk 0:00:00]}  Kb4 {[%clk 0:00:00]} 64. Rxf5 {[%clk 0:00:00]}  c1=Q+ {[%clk 0:00:00]} 65. Kd3 {[%clk 0:00:00]}  gxf5 {[%clk 0:00:00]} 66. Kd4 {[%clk 0:00:00]}  Ra4 {[%clk 0:00:00]} 67. Ke5 {[%clk 0:00:00]}  Kb5 {[%clk 0:00:00]} 68. Kf6 {[%clk 0:00:00]}  Ra6+ {[%clk 0:00:00]} 69. Kg7 {[%clk 0:00:00]}  Rg6+ {[%clk 0:00:00]} 70. Kxh7 {[%clk 0:00:00]}  Qxf4 {[%clk 0:00:00]} 71. Kh8 {[%clk 0:00:00]}  Qxg5 {[%clk 0:00:00]} 72. h7 {[%clk 0:00:00]}  Qf6# {[%clk 0:00:00]} 0-1


[Site "https://www.chess.com"]

[Event "Titled Tuesday Blitz August 16 Late 2022"]
[White "Lamaze, Simon"]
[Black "Silvestre, Christian"]
[WhiteFideId "36069264"]
[BlackFideId "30956269"]
[WhiteElo "2131"]
[BlackElo "1942"]
[Result "1-0"]
[Round "05"]
[TimeControl "180+1"]
[Date "2022.08.18"]
[WhiteClock "0:00:00"]
[BlackClock "0:00:00"]

1. d4 {[%clk 0:00:00]}  d6 {[%clk 0:00:00]} 2. e4 {[%clk 0:00:00]}  Nf6 {[%clk 0:00:00]} 3. Nc3 {[%clk 0:00:00]}  g6 {[%clk 0:00:00]} 4. Be3 {[%clk 0:00:00]}  Bg7 {[%clk 0:00:00]} 5. Qd2 {[%clk 0:00:00]}  Ng4 {[%clk 0:00:00]} 6. Bg5 {[%clk 0:00:00]}  h6 {[%clk 0:00:00]} 7. Bh4 {[%clk 0:00:00]}  g5 {[%clk 0:00:00]} 8. Bg3 {[%clk 0:00:00]}  e6 {[%clk 0:00:00]} 9. h4 {[%clk 0:00:00]}  Bf6 {[%clk 0:00:00]} 10. Nf3 {[%clk 0:00:00]}  gxh4 {[%clk 0:00:00]} 11. Bxh4 {[%clk 0:00:00]}  Bxh4 {[%clk 0:00:00]} 12. Rxh4 {[%clk 0:00:00]}  h5 {[%clk 0:00:00]} 13. g3 {[%clk 0:00:00]}  Qf6 {[%clk 0:00:00]} 14. e5 {[%clk 0:00:00]}  Qxf3 {[%clk 0:00:00]} 15. exd6 {[%clk 0:00:00]}  cxd6 {[%clk 0:00:00]} 16. Nb5 {[%clk 0:00:00]}  Qc6 {[%clk 0:00:00]} 17. Be2 {[%clk 0:00:00]}  Nf6 {[%clk 0:00:00]} 18. Qg5 {[%clk 0:00:00]}  Nbd7 {[%clk 0:00:00]} 19. d5 {[%clk 0:00:00]}  Nxd5 {[%clk 0:00:00]} 20. Rc4 {[%clk 0:00:00]}  Qb6 {[%clk 0:00:00]} 21. a4 {[%clk 0:00:00]}  Ne5 {[%clk 0:00:00]} 22. Rd4 {[%clk 0:00:00]}  a6 {[%clk 0:00:00]} 23. Rxd5 {[%clk 0:00:00]}  exd5 {[%clk 0:00:00]} 24. Qf6 {[%clk 0:00:00]}  Rg8 {[%clk 0:00:00]} 25. a5 {[%clk 0:00:00]}  Qxb5 {[%clk 0:00:00]} 26. Bxb5+ {[%clk 0:00:00]}  axb5 {[%clk 0:00:00]} 27. Qxd6 {[%clk 0:00:00]}  Nc6 {[%clk 0:00:00]} 28. O-O-O {[%clk 0:00:00]}  Be6 {[%clk 0:00:00]} 29. Qc7 {[%clk 0:00:00]}  Rxa5 {[%clk 0:00:00]} 30. Qxb7 {[%clk 0:00:00]}  Ra1+ {[%clk 0:00:00]} 31. Kd2 {[%clk 0:00:00]}  Rxd1+ {[%clk 0:00:00]} 32. Kxd1 {[%clk 0:00:00]}  Nd8 {[%clk 0:00:00]} 33. Qxb5+ {[%clk 0:00:00]}  Ke7 {[%clk 0:00:00]} 34. Qc5+ {[%clk 0:00:00]}  Kf6 {[%clk 0:00:00]} 35. b4 {[%clk 0:00:00]}  Bg4+ {[%clk 0:00:00]} 36. Kc1 {[%clk 0:00:00]}  Ne6 {[%clk 0:00:00]} 37. Qxd5 {[%clk 0:00:00]}  Rd8 {[%clk 0:00:00]} 38. Qc6 {[%clk 0:00:00]}  Rd1+ {[%clk 0:00:00]} 39. Kb2 {[%clk 0:00:00]}  Kg7 {[%clk 0:00:00]} 40. b5 {[%clk 0:00:00]}  Nd4 {[%clk 0:00:00]} 41. Qc3 {[%clk 0:00:00]}  Kg6 {[%clk 0:00:00]} 42. b6 {[%clk 0:00:00]}  Ne6 {[%clk 0:00:00]} 43. b7 {[%clk 0:00:00]}  Rd8 {[%clk 0:00:00]} 44. Qe5 {[%clk 0:00:00]} 1-0


[Site "https://www.chess.com"]

[Event "Titled Tuesday Blitz August 16 Late 2022"]
[White "Lehtosaari, Mauri"]
[Black "Kovacevic, Radmila"]
[WhiteFideId "501999"]
[BlackFideId "933171"]
[WhiteElo "2200"]
[BlackElo "2157"]
[Result "1-0"]
[Round "05"]
[TimeControl "180+1"]
[Date "2022.08.18"]
[WhiteClock "0:00:00"]
[BlackClock "0:00:00"]

1. d4 {[%clk 0:00:00]}  e5 {[%clk 0:00:00]} 2. Nf3 {[%clk 0:00:00]}  e4 {[%clk 0:00:00]} 3. Nfd2 {[%clk 0:00:00]}  Nf6 {[%clk 0:00:00]} 4. Nb3 {[%clk 0:00:00]}  a5 {[%clk 0:00:00]} 5. a4 {[%clk 0:00:00]}  b6 {[%clk 0:00:00]} 6. Bg5 {[%clk 0:00:00]}  h6 {[%clk 0:00:00]} 7. Bxf6 {[%clk 0:00:00]}  Qxf6 {[%clk 0:00:00]} 8. e3 {[%clk 0:00:00]}  Qg6 {[%clk 0:00:00]} 9. c4 {[%clk 0:00:00]}  Bb4+ {[%clk 0:00:00]} 10. Nc3 {[%clk 0:00:00]}  O-O {[%clk 0:00:00]} 11. g3 {[%clk 0:00:00]}  Ba6 {[%clk 0:00:00]} 12. Nd2 {[%clk 0:00:00]}  Re8 {[%clk 0:00:00]} 13. Bg2 {[%clk 0:00:00]}  f5 {[%clk 0:00:00]} 14. O-O {[%clk 0:00:00]}  Bxc3 {[%clk 0:00:00]} 15. bxc3 {[%clk 0:00:00]}  Nc6 {[%clk 0:00:00]} 16. Re1 {[%clk 0:00:00]}  Re7 {[%clk 0:00:00]} 17. Qb3 {[%clk 0:00:00]}  Kh8 {[%clk 0:00:00]} 18. Qa3 {[%clk 0:00:00]}  Rae8 {[%clk 0:00:00]} 19. c5 {[%clk 0:00:00]}  Bd3 {[%clk 0:00:00]} 20. cxb6 {[%clk 0:00:00]}  cxb6 {[%clk 0:00:00]} 21. Qb3 {[%clk 0:00:00]}  Nd8 {[%clk 0:00:00]} 22. Ra2 {[%clk 0:00:00]}  Nf7 {[%clk 0:00:00]} 23. Rb2 {[%clk 0:00:00]}  Re6 {[%clk 0:00:00]} 24. Nc4 {[%clk 0:00:00]}  Rc8 {[%clk 0:00:00]} 25. Nd2 {[%clk 0:00:00]}  Rec6 {[%clk 0:00:00]} 26. Rc1 {[%clk 0:00:00]}  Nd6 {[%clk 0:00:00]} 27. Bf1 {[%clk 0:00:00]}  Bxf1 {[%clk 0:00:00]} 28. Kxf1 {[%clk 0:00:00]}  f4 {[%clk 0:00:00]} 29. exf4 {[%clk 0:00:00]}  e3 {[%clk 0:00:00]} 30. fxe3 {[%clk 0:00:00]}  Qd3+ {[%clk 0:00:00]} 31. Kf2 {[%clk 0:00:00]}  Rxc3 {[%clk 0:00:00]} 32. Rxc3 {[%clk 0:00:00]}  Rxc3 {[%clk 0:00:00]} 33. Qxb6 {[%clk 0:00:00]}  Qxe3+ {[%clk 0:00:00]} 34. Kg2 {[%clk 0:00:00]}  Qe2+ {[%clk 0:00:00]} 35. Kh3 {[%clk 0:00:00]}  Nf5 {[%clk 0:00:00]} 36. Qg6 {[%clk 0:00:00]}  Ne3 {[%clk 0:00:00]} 37. Rb8+ {[%clk 0:00:00]}  Rc8 {[%clk 0:00:00]} 38. Rxc8# {[%clk 0:00:00]} 1-0


[Site "https://www.chess.com"]

[Event "Titled Tuesday Blitz August 16 Late 2022"]
[White "Levine, Joseph"]
[Black "Goltsev, Dmitry"]
[WhiteFideId "30940346"]
[BlackFideId "24176710"]
[WhiteElo "1810"]
[BlackElo "2258"]
[Result "1-0"]
[Round "05"]
[TimeControl "180+1"]
[Date "2022.08.16"]
[WhiteClock "0:00:18"]
[BlackClock "0:00:45"]

1. e4 {[%clk 0:03:00]}  e6 {[%clk 0:02:45]} 2. d3 {[%clk 0:02:58]}  d5 {[%clk 0:02:46]} 3. Nd2 {[%clk 0:02:59]}  dxe4 {[%clk 0:02:45]} 4. dxe4 {[%clk 0:03:00]}  c5 {[%clk 0:02:46]} 5. Ngf3 {[%clk 0:03:00]}  Nc6 {[%clk 0:02:46]} 6. c3 {[%clk 0:02:55]}  Nf6 {[%clk 0:02:45]} 7. e5 {[%clk 0:02:52]}  Nd7 {[%clk 0:02:43]} 8. Bb5 {[%clk 0:02:52]}  Qc7 {[%clk 0:02:42]} 9. Qe2 {[%clk 0:02:49]}  a6 {[%clk 0:02:40]} 10. Bxc6 {[%clk 0:02:21]}  Qxc6 {[%clk 0:02:41]} 11. O-O {[%clk 0:02:19]}  Be7 {[%clk 0:02:40]} 12. Ne4 {[%clk 0:02:12]}  b6 {[%clk 0:02:39]} 13. Rd1 {[%clk 0:02:11]}  Bb7 {[%clk 0:02:38]} 14. Nd6+ {[%clk 0:02:10]}  Bxd6 {[%clk 0:02:38]} 15. Rxd6 {[%clk 0:02:11]}  Qe4 {[%clk 0:02:38]} 16. Be3 {[%clk 0:02:03]}  Nxe5 {[%clk 0:02:30]} 17. Rxb6 {[%clk 0:01:51]}  Bd5 {[%clk 0:02:20]} 18. b3 {[%clk 0:00:59]}  Nxf3+ {[%clk 0:02:10]} 19. Qxf3 {[%clk 0:00:55]}  Qg6 {[%clk 0:02:11]} 20. Qg3 {[%clk 0:00:54]}  Rc8 {[%clk 0:01:42]} 21. c4 {[%clk 0:00:49]}  Be4 {[%clk 0:01:40]} 22. Qxg6 {[%clk 0:00:45]}  hxg6 {[%clk 0:01:40]} 23. Rxa6 {[%clk 0:00:45]}  O-O {[%clk 0:01:40]} 24. Ra5 {[%clk 0:00:44]}  Rfd8 {[%clk 0:01:35]} 25. f3 {[%clk 0:00:43]}  Bc2 {[%clk 0:01:30]} 26. Rc1 {[%clk 0:00:37]}  Rd1+ {[%clk 0:01:22]} 27. Rxd1 {[%clk 0:00:37]}  Bxd1 {[%clk 0:01:23]} 28. Kf2 {[%clk 0:00:37]}  Bc2 {[%clk 0:01:21]} 29. Bxc5 {[%clk 0:00:29]}  Rd8 {[%clk 0:01:21]} 30. Be3 {[%clk 0:00:28]}  Rd1 {[%clk 0:01:21]} 31. c5 {[%clk 0:00:24]}  Bd3 {[%clk 0:01:20]} 32. c6 {[%clk 0:00:23]}  e5 {[%clk 0:01:06]} 33. c7 {[%clk 0:00:19]}  Bf5 {[%clk 0:01:07]} 34. Rxe5 {[%clk 0:00:18]}  Bd7 {[%clk 0:00:53]} 35. Re8+ {[%clk 0:00:17]}  Kh7 {[%clk 0:00:49]} 36. Rd8 {[%clk 0:00:17]}  f5 {[%clk 0:00:48]} 37. Rxd7 {[%clk 0:00:17]}  Rxd7 {[%clk 0:00:49]} 38. c8=Q {[%clk 0:00:17]}  Rd3 {[%clk 0:00:49]} 39. Qc2 {[%clk 0:00:16]}  Rd8 {[%clk 0:00:48]} 40. a4 {[%clk 0:00:15]}  f4 {[%clk 0:00:49]} 41. Bxf4 {[%clk 0:00:15]}  Rf8 {[%clk 0:00:46]} 42. Be3 {[%clk 0:00:16]}  Rf6 {[%clk 0:00:45]} 43. a5 {[%clk 0:00:16]}  Kh8 {[%clk 0:00:45]} 44. b4 {[%clk 0:00:15]}  Rf7 {[%clk 0:00:46]} 45. Qxg6 {[%clk 0:00:15]}  Rf6 {[%clk 0:00:46]} 46. Qxf6 {[%clk 0:00:15]}  gxf6 {[%clk 0:00:44]} 47. a6 {[%clk 0:00:16]}  Kh7 {[%clk 0:00:44]} 48. a7 {[%clk 0:00:17]}  f5 {[%clk 0:00:45]} 49. a8=Q {[%clk 0:00:16]}  f4 {[%clk 0:00:45]} 50. Qe4+ {[%clk 0:00:17]}  Kh6 {[%clk 0:00:44]} 51. Qxf4+ {[%clk 0:00:18]}  Kh5 {[%clk 0:00:45]} 52. Qg5# {[%clk 0:00:18]} 1-0


[Site "https://www.chess.com"]

[Event "Titled Tuesday Blitz August 16 Late 2022"]
[White "Martinez Alcantara, Jose Eduardo"]
[Black "Mikhailov, Viacheslav"]
[WhiteFideId "3805662"]
[BlackFideId "4187369"]
[WhiteElo "2703"]
[BlackElo "2381"]
[Result "1-0"]
[Round "05"]
[TimeControl "180+1"]
[Date "2022.08.16"]
[WhiteClock "0:00:10"]
[BlackClock "0:00:03"]

1. e4 {[%clk 0:03:00]}  c5 {[%clk 0:02:57]} 2. Nf3 {[%clk 0:03:00]}  Nc6 {[%clk 0:02:57]} 3. c3 {[%clk 0:03:01]}  g6 {[%clk 0:02:58]} 4. d4 {[%clk 0:03:00]}  cxd4 {[%clk 0:02:58]} 5. cxd4 {[%clk 0:03:01]}  Bg7 {[%clk 0:02:59]} 6. Nc3 {[%clk 0:03:01]}  d6 {[%clk 0:02:59]} 7. h3 {[%clk 0:03:01]}  Nf6 {[%clk 0:02:59]} 8. d5 {[%clk 0:03:00]}  Nb8 {[%clk 0:02:59]} 9. Be3 {[%clk 0:02:58]}  O-O {[%clk 0:02:59]} 10. Be2 {[%clk 0:02:55]}  a6 {[%clk 0:02:58]} 11. O-O {[%clk 0:02:52]}  b5 {[%clk 0:02:54]} 12. a3 {[%clk 0:02:36]}  Nbd7 {[%clk 0:02:48]} 13. Nd4 {[%clk 0:02:36]}  Bb7 {[%clk 0:02:48]} 14. Qd2 {[%clk 0:02:33]}  Nc5 {[%clk 0:02:39]} 15. f3 {[%clk 0:02:30]}  Nh5 {[%clk 0:02:35]} 16. Kh2 {[%clk 0:02:21]}  Bxd4 {[%clk 0:02:20]} 17. Bxd4 {[%clk 0:02:21]}  Nb3 {[%clk 0:02:21]} 18. Qe3 {[%clk 0:02:22]}  Nxd4 {[%clk 0:02:19]} 19. Qxd4 {[%clk 0:02:21]}  Nf4 {[%clk 0:02:07]} 20. Qd2 {[%clk 0:02:21]}  e5 {[%clk 0:01:46]} 21. dxe6 {[%clk 0:02:11]}  fxe6 {[%clk 0:01:47]} 22. g3 {[%clk 0:02:11]}  Nxe2 {[%clk 0:01:41]} 23. Nxe2 {[%clk 0:02:04]}  Rc8 {[%clk 0:01:40]} 24. Rad1 {[%clk 0:02:04]}  d5 {[%clk 0:01:39]} 25. e5 {[%clk 0:02:00]}  Qb6 {[%clk 0:01:32]} 26. Nd4 {[%clk 0:01:58]}  Rc4 {[%clk 0:01:26]} 27. b3 {[%clk 0:01:57]}  Rc7 {[%clk 0:01:22]} 28. Rc1 {[%clk 0:01:50]}  Rfc8 {[%clk 0:01:22]} 29. Rxc7 {[%clk 0:01:49]}  Rxc7 {[%clk 0:01:22]} 30. h4 {[%clk 0:01:41]}  a5 {[%clk 0:01:19]} 31. Rd1 {[%clk 0:01:35]}  b4 {[%clk 0:01:07]} 32. axb4 {[%clk 0:01:36]}  axb4 {[%clk 0:01:08]} 33. Qg5 {[%clk 0:01:29]}  Rg7 {[%clk 0:00:36]} 34. Qe3 {[%clk 0:01:12]}  h5 {[%clk 0:00:20]} 35. Rc1 {[%clk 0:01:09]}  Kh7 {[%clk 0:00:19]} 36. Qf4 {[%clk 0:00:50]}  Qa6 {[%clk 0:00:07]} 37. Qd2 {[%clk 0:00:43]}  Rf7 {[%clk 0:00:04]} 38. Qxb4 {[%clk 0:00:25]}  Qa2+ {[%clk 0:00:04]} 39. Rc2 {[%clk 0:00:22]}  Qa1 {[%clk 0:00:03]} 40. Nxe6 {[%clk 0:00:18]}  Qf1 {[%clk 0:00:03]} 41. Ng5+ {[%clk 0:00:18]}  Kg7 {[%clk 0:00:03]} 42. Nxf7 {[%clk 0:00:14]}  Qxf3 {[%clk 0:00:03]} 43. Qxb7 {[%clk 0:00:10]} 1-0


[Site "https://www.chess.com"]